[Event "NJSK 2026 Jeugd C"]
[Site "Helmond, Netherlands"]
[Date "2026.05.01"]
[Round "9.15"]
[White "Bajnath, Dhanesh"]
[Black "Huang, Ziyang"]
[Result "1/2-1/2"]
[TimeControl "90min/40moves + 30sec/move"]
[WhiteTitle "-"]
[BlackTitle "-"]
[WhiteFideId "40104842"]
[BlackFideId "40105288"]
[WhiteElo "1889"]
[BlackElo "1721"]

1. e4 {[%clk 01:22:13]} {[%emt 00:08:42]} c5 {[%clk 01:30:59]} {[%emt
00:00:02]} 2. Nf3 {[%clk 01:22:32]} {[%emt 00:00:10]} d6 {[%clk 01:31:23]}
{[%emt 00:00:06]} 3. d4 {[%clk 01:23:02]} {[%emt 00:00:02]} cxd4 {[%clk
01:31:45]} {[%emt 00:00:08]} 4. Nxd4 {[%clk 01:23:27]} {[%emt 00:00:05]} Nf6
{[%clk 01:32:09]} {[%emt 00:00:05]} 5. Nc3 {[%clk 01:23:55]} {[%emt 00:00:02]}
g6 {[%clk 01:32:34]} {[%emt 00:00:06]} 6. Be3 {[%clk 01:24:16]} {[%emt
00:00:09]} Bg7 {[%clk 01:32:57]} {[%emt 00:00:06]} 7. f3 {[%clk 01:24:17]}
{[%emt 00:00:30]} O-O {[%clk 01:33:18]} {[%emt 00:00:09]} 8. Qd2 {[%clk
01:24:47]} Nc6 {[%clk 01:33:39]} {[%emt 00:00:09]} 9. O-O-O {[%clk 01:25:14]}
{[%emt 00:00:03]} d5 {[%clk 01:34:02]} {[%emt 00:00:08]} 10. exd5 {[%emt
00:00:05]} Nxd5 {[%clk 01:34:19]} {[%emt 00:00:11]} 11. Nxc6 {[%clk 01:26:07]}
{[%emt 00:00:04]} bxc6 {[%clk 01:34:43]} {[%emt 00:00:05]} 12. Bd4 {[%clk
01:26:31]} {[%emt 00:00:07]} e5 {[%clk 01:34:35]} {[%emt 00:00:38]} 13. Bc5
{[%clk 01:27:00]} {[%emt 00:00:01]} Be6 {[%clk 01:34:29]} {[%emt 00:00:35]} 14.
Bc4 {[%clk 01:26:57]} {[%emt 00:00:33]} Re8 {[%clk 01:34:06]} {[%emt 00:00:52]}
15. Ne4 {[%clk 01:26:34]} {[%emt 00:00:55]} Qc7 {[%clk 01:33:03]} {[%emt
00:01:30]} 16. Kb1 {[%clk 01:25:51]} {[%emt 00:01:15]} Red8 {[%clk 01:28:46]}
{[%emt 00:04:46]} 17. Qf2 {[%clk 01:20:38]} {[%emt 00:05:44]} f5 {[%clk
01:24:05]} {[%emt 00:05:11]} 18. Nd2 {[%clk 01:16:24]} {[%emt 00:04:44]} Rab8
{[%clk 01:16:25]} {[%emt 00:08:10]} 19. Bb3 {[%clk 01:14:02]} {[%emt 00:02:52]}
a5 {[%clk 01:11:04]} {[%emt 00:05:51]} 20. a4 {[%clk 01:01:26]} {[%emt
00:13:07]} Kh8 {[%clk 01:04:53]} {[%emt 00:06:40]} 21. Rhe1 {[%clk 00:51:36]}
{[%emt 00:10:21]} Qb7 {[%clk 00:59:54]} {[%emt 00:05:28]} 22. g3 {[%clk
00:31:15]} {[%emt 00:20:51]} Nb4 {[%clk 00:57:11]} {[%emt 00:03:12]} 23. Nc4
{[%clk 00:11:53]} {[%emt 00:19:54]} Rxd1+ {[%clk 00:51:43]} {[%emt 00:05:57]}
24. Rxd1 {[%clk 00:12:21]} {[%emt 00:00:02]} Bxc4 {[%clk 00:50:16]} {[%emt
00:01:59]} 25. Bxc4 {[%clk 00:12:48]} {[%emt 00:00:03]} Na6 {[%emt 00:23:59]}
1/2-1/2

[Event "NJSK 2026 Jeugd C"]
[Site "Helmond, Netherlands"]
[Date "2026.05.01"]
[Round "9.16"]
[White "Roersma, Dylan"]
[Black "Mendelsohn, Saffran"]
[Result "1-0"]
[TimeControl "90min/40moves + 30sec/move"]
[WhiteTitle "-"]
[BlackTitle "-"]
[WhiteFideId "1097393"]
[BlackFideId "40108996"]
[WhiteElo "1846"]
[BlackElo "1767"]

1. e4 {[%clk 01:30:40]} {[%emt 00:00:20]} c5 {[%clk 01:30:51]} {[%emt
00:00:10]} 2. Nf3 {[%clk 01:30:56]} {[%emt 00:00:13]} Nc6 {[%clk 01:31:14]}
{[%emt 00:00:07]} 3. d4 {[%clk 01:31:20]} {[%emt 00:00:06]} cxd4 {[%clk
01:31:38]} {[%emt 00:00:07]} 4. Nxd4 {[%clk 01:31:42]} {[%emt 00:00:08]} Nf6
{[%clk 01:32:01]} {[%emt 00:00:07]} 5. Nc3 {[%clk 01:32:05]} {[%emt 00:00:06]}
e5 {[%clk 01:31:41]} {[%emt 00:00:50]} 6. Ndb5 {[%clk 01:32:29]} {[%emt
00:00:06]} d6 {[%clk 01:32:01]} {[%emt 00:00:11]} 7. Bg5 {[%clk 01:32:37]}
{[%emt 00:00:23]} a6 {[%clk 01:32:18]} {[%emt 00:00:13]} 8. Na3 {[%clk
01:33:02]} {[%emt 00:00:05]} b5 {[%clk 01:32:41]} {[%emt 00:00:07]} 9. Nd5
{[%clk 01:33:19]} {[%emt 00:00:13]} Be7 {[%clk 01:32:59]} {[%emt 00:00:12]} 10.
Bxf6 {[%clk 01:33:42]} {[%emt 00:00:07]} Bxf6 {[%clk 01:33:23]} {[%emt
00:00:06]} 11. c3 {[%clk 01:34:00]} {[%emt 00:00:12]} Rb8 {[%clk 01:33:30]}
{[%emt 00:00:22]} 12. Nc2 {[%clk 01:34:14]} {[%emt 00:00:16]} Bg5 {[%clk
01:33:32]} {[%emt 00:00:28]} 13. g3 {[%clk 01:33:32]} {[%emt 00:01:12]} O-O
{[%clk 01:32:46]} {[%emt 00:01:16]} 14. h4 {[%clk 01:32:49]} {[%emt 00:01:14]}
Bh6 {[%clk 01:32:41]} {[%emt 00:00:34]} 15. Bg2 {[%clk 01:33:08]} {[%emt
00:00:11]} Ne7 {[%clk 01:29:15]} {[%emt 00:03:56]} 16. Ncb4 {[%clk 01:32:06]}
{[%emt 00:01:33]} Bb7 {[%clk 01:27:18]} {[%emt 00:02:26]} 17. O-O {[%clk
01:27:23]} {[%emt 00:05:13]} g6 {[%clk 01:22:23]} {[%emt 00:05:25]} 18. Qd3
{[%clk 01:20:06]} {[%emt 00:07:47]} f5 {[%clk 01:13:15]} {[%emt 00:09:38]} 19.
Rad1 {[%clk 00:59:11]} {[%emt 00:21:26]} Nxd5 {[%clk 01:10:18]} {[%emt
00:03:27]} 20. Nxd5 {[%clk 00:59:02]} {[%emt 00:00:38]} f4 {[%clk 01:04:48]}
{[%emt 00:06:00]} 21. c4 {[%clk 00:36:39]} {[%emt 00:22:54]} g5 {[%clk
00:41:11]} {[%emt 00:24:06]} 22. hxg5 {[%clk 00:22:02]} {[%emt 00:15:07]} Qxg5
{[%clk 00:41:14]} {[%emt 00:00:27]} 23. gxf4 {[%clk 00:16:55]} {[%emt
00:05:39]} exf4 {[%clk 00:41:11]} {[%emt 00:00:33]} 24. f3 {[%clk 00:16:11]}
{[%emt 00:01:14]} Bg7 {[%clk 00:34:50]} {[%emt 00:06:51]} 25. Rf2 {[%clk
00:06:21]} {[%emt 00:10:19]} Kh8 {[%clk 00:32:18]} {[%emt 00:03:03]} 26. cxb5
{[%clk 00:04:44]} {[%emt 00:02:06]} axb5 {[%clk 00:32:21]} {[%emt 00:00:27]} 27.
Nc7 {[%clk 00:03:13]} {[%emt 00:02:01]} Rf6 {[%clk 00:28:59]} {[%emt 00:03:52]}
28. Qxb5 {[%clk 00:00:59]} {[%emt 00:02:45]} Qh4 {[%clk 00:28:18]} {[%emt
00:01:10]} 29. Ne8 {[%clk 00:00:34]} {[%emt 00:00:56]} Rg6 {[%clk 00:27:44]}
{[%emt 00:01:04]} 30. Nxg7 {[%clk 00:00:52]} {[%emt 00:00:12]} Rxg7 {[%clk
00:26:57]} {[%emt 00:01:17]} 31. Rxd6 {[%clk 00:00:33]} {[%emt 00:00:49]} Rbg8
{[%clk 00:26:31]} {[%emt 00:00:55]} 32. Qe5 {[%clk 00:00:52]} {[%emt 00:00:11]}
Bc8 {[%clk 00:26:18]} {[%emt 00:00:44]} 33. Kf1 {[%clk 00:00:42]} {[%emt
00:00:40]} Bh3 {[%clk 00:24:59]} {[%emt 00:01:49]} 34. Bxh3 {[%clk 00:01:03]}
{[%emt 00:00:09]} Qxh3+ {[%clk 00:25:24]} {[%emt 00:00:05]} 35. Ke2 {[%clk
00:01:30]} {[%emt 00:00:03]} Rc8 {[%clk 00:25:20]} {[%emt 00:00:31]} 36. Qd4
{[%clk 00:00:42]} {[%emt 00:01:20]} Qh1 {[%clk 00:24:32]} {[%emt 00:01:18]} 37.
Rd8+ {[%clk 00:01:04]} {[%emt 00:00:08]} Rxd8 {[%emt 00:00:12]} 38. Qxd8+
{[%clk 00:01:31]} Rg8 {[%clk 00:25:13]} {[%emt 00:00:10]} 39. Qd4+ {[%clk
00:01:59]} {[%emt 00:00:02]} Rg7 {[%clk 00:25:33]} {[%emt 00:00:10]} 40. Qd8+
{[%clk 00:01:46]} {[%emt 00:00:43]} Rg8 {[%clk 00:26:02]} 41. Qf6+ {[%clk
00:02:09]} {[%emt 00:00:07]} Rg7 {[%clk 00:26:29]} {[%emt 00:00:03]} 42. Qxf4
{[%clk 00:02:18]} {[%emt 00:00:20]} Qb1 {[%clk 00:26:43]} {[%emt 00:00:16]} 43.
Qf8+ {[%clk 00:01:02]} {[%emt 00:01:47]} Rg8 {[%clk 00:27:12]} 44. Qf6+ {[%clk
00:01:26]} {[%emt 00:00:06]} Rg7 {[%clk 00:27:40]} {[%emt 00:00:02]} 45. Qd8+
{[%clk 00:00:37]} {[%emt 00:01:20]} Rg8 {[%clk 00:28:09]} 46. Qd4+ {[%clk
00:01:05]} {[%emt 00:00:02]} Rg7 {[%clk 00:28:31]} {[%emt 00:00:08]} 47. Rf1
{[%clk 00:00:40]} {[%emt 00:00:55]} Qc2+ {[%clk 00:28:48]} {[%emt 00:00:12]} 48.
Ke3 {[%clk 00:00:36]} {[%emt 00:00:35]} Qg2 {[%clk 00:29:09]} {[%emt 00:00:09]}
49. Qd8+ {[%clk 00:00:49]} {[%emt 00:00:17]} Rg8 {[%clk 00:29:39]} 50. Qf6+
{[%clk 00:01:12]} {[%emt 00:00:06]} Rg7 {[%clk 00:30:07]} {[%emt 00:00:02]} 51.
Rd1 {[%clk 00:01:18]} {[%emt 00:00:24]} h5 {[%clk 00:29:30]} {[%emt 00:01:06]}
52. Rd8+ {[%clk 00:01:44]} {[%emt 00:00:04]} Kh7 {[%clk 00:29:55]} {[%emt
00:00:05]} 53. Qf5+ {[%clk 00:02:07]} {[%emt 00:00:07]} Rg6 {[%clk 00:30:12]}
{[%emt 00:00:14]} 54. Rd7+ {[%clk 00:02:29]} {[%emt 00:00:08]} Kh6 {[%clk
00:30:24]} {[%emt 00:00:17]} 55. Qf8+ {[%clk 00:02:53]} {[%emt 00:00:07]} Kg5
{[%clk 00:30:46]} {[%emt 00:00:08]} 56. Qf4# {[%clk 00:02:50]} {[%emt
00:00:02]} 1-0

[Event "NJSK 2026 Jeugd C"]
[Site "Helmond, Netherlands"]
[Date "2026.05.01"]
[Round "10.1"]
[White "Guillaumond, Matthieu"]
[Black "Teianu, Sabin"]
[Result "1-0"]
[TimeControl "90min/40moves + 30sec/move"]
[WhiteTitle "-"]
[BlackTitle "-"]
[WhiteFideId "1097091"]
[BlackFideId "1095846"]
[WhiteElo "2104"]
[BlackElo "2131"]

1. e4 {[%clk 00:05:05]} e6 {[%clk 00:05:06]} {[%emt 00:00:01]} 2. d4 {[%clk
00:05:07]} {[%emt 00:00:01]} d5 {[%clk 00:05:08]} 3. Nc3 {[%clk 00:05:09]} Nf6
{[%clk 00:05:09]} {[%emt 00:00:01]} 4. e5 {[%clk 00:05:11]} Nfd7 {[%clk
00:05:11]} 5. f4 {[%clk 00:05:13]} c5 {[%clk 00:05:13]} 6. Nf3 {[%clk
00:05:15]} {[%emt 00:00:01]} Nc6 {[%clk 00:05:15]} 7. Be3 {[%clk 00:05:17]}
{[%emt 00:00:01]} Be7 {[%clk 00:05:16]} {[%emt 00:00:03]} 8. Qd2 {[%clk
00:05:18]} {[%emt 00:00:01]} a6 {[%clk 00:05:18]} 9. a3 {[%clk 00:05:13]}
{[%emt 00:00:08]} O-O {[%clk 00:05:08]} {[%emt 00:00:13]} 10. dxc5 {[%clk
00:04:45]} {[%emt 00:00:31]} Nxc5 {[%clk 00:04:57]} {[%emt 00:00:14]} 11. O-O-O
{[%clk 00:04:35]} {[%emt 00:00:13]} Qa5 {[%clk 00:04:14]} {[%emt 00:00:46]} 12.
Bxc5 {[%clk 00:04:17]} {[%emt 00:00:21]} Bxc5 {[%clk 00:03:22]} {[%emt
00:00:55]} 13. Bd3 {[%clk 00:04:19]} b5 {[%clk 00:03:11]} {[%emt 00:00:14]} 14.
Bxh7+ {[%clk 00:03:39]} {[%emt 00:00:42]} Kxh7 {[%clk 00:03:11]} {[%emt
00:00:04]} 15. Ng5+ {[%clk 00:03:38]} {[%emt 00:00:04]} Kg8 {[%clk 00:03:09]}
{[%emt 00:00:05]} 16. Qd3 {[%clk 00:03:39]} {[%emt 00:00:01]} g6 {[%clk
00:02:36]} {[%emt 00:00:36]} 17. Qh3 {[%clk 00:03:40]} {[%emt 00:00:02]} Be3+
{[%clk 00:01:14]} {[%emt 00:01:25]} 18. Kb1 {[%clk 00:03:41]} {[%emt 00:00:02]}
1-0

[Event "NJSK 2026 Jeugd C"]
[Site "Helmond, Netherlands"]
[Date "2026.05.01"]
[Round "11.1"]
[White "Teianu, Sabin"]
[Black "Guillaumond, Matthieu"]
[Result "1-0"]
[TimeControl "90min/40moves + 30sec/move"]
[WhiteTitle "-"]
[BlackTitle "-"]
[WhiteFideId "1095846"]
[BlackFideId "1097091"]
[WhiteElo "2131"]
[BlackElo "2104"]

1. e3 {[%clk 00:05:05]} c5 {[%clk 00:05:00]} {[%emt 00:00:07]} 2. Nf3 {[%clk
00:04:58]} {[%emt 00:00:10]} e6 {[%clk 00:04:51]} {[%emt 00:00:12]} 3. b3
{[%clk 00:04:50]} {[%emt 00:00:11]} Nf6 {[%clk 00:04:50]} {[%emt 00:00:04]} 4.
Bb2 {[%clk 00:04:50]} {[%emt 00:00:03]} d5 {[%clk 00:04:51]} {[%emt 00:00:02]}
5. Be2 {[%clk 00:04:35]} {[%emt 00:00:18]} Be7 {[%clk 00:04:46]} {[%emt
00:00:08]} 6. O-O {[%clk 00:04:35]} {[%emt 00:00:02]} O-O {[%clk 00:04:48]}
{[%emt 00:00:02]} 7. Ne5 {[%clk 00:04:17]} {[%emt 00:00:21]} Nfd7 {[%clk
00:04:23]} {[%emt 00:00:27]} 8. Nxd7 {[%clk 00:03:22]} {[%emt 00:00:57]} Nxd7
{[%clk 00:04:24]} {[%emt 00:00:02]} 9. c4 {[%clk 00:03:13]} {[%emt 00:00:13]}
Nf6 {[%clk 00:04:04]} {[%emt 00:00:23]} 10. d4 {[%clk 00:03:03]} {[%emt
00:00:14]} cxd4 {[%clk 00:03:57]} {[%emt 00:00:10]} 11. exd4 {[%clk 00:02:07]}
{[%emt 00:00:58]} b6 {[%clk 00:03:57]} {[%emt 00:00:03]} 12. Nd2 {[%clk
00:01:48]} {[%emt 00:00:22]} Bb7 {[%clk 00:03:51]} {[%emt 00:00:09]} 13. Rc1
{[%clk 00:01:43]} {[%emt 00:00:08]} Rc8 {[%clk 00:03:51]} {[%emt 00:00:03]} 14.
Nf3 {[%clk 00:01:27]} {[%emt 00:00:19]} dxc4 {[%clk 00:03:21]} {[%emt
00:00:33]} 15. bxc4 {[%clk 00:01:10]} {[%emt 00:00:19]} Bd6 {[%clk 00:03:23]}
{[%emt 00:00:01]} 16. Qa4 {[%clk 00:00:56]} {[%emt 00:00:18]} Bb8 {[%clk
00:03:09]} {[%emt 00:00:17]} 17. Rfd1 {[%clk 00:00:35]} {[%emt 00:00:25]} Qd7
{[%clk 00:02:46]} {[%emt 00:00:25]} 18. Qb3 {[%clk 00:00:21]} {[%emt 00:00:16]}
Rfd8 {[%clk 00:02:45]} {[%emt 00:00:04]} 19. Ne5 {[%clk 00:00:10]} {[%emt
00:00:14]} Qe8 {[%clk 00:02:46]} {[%emt 00:00:02]} 20. Qg3 {[%clk 00:00:07]}
{[%emt 00:00:05]} Nd7 {[%clk 00:02:38]} {[%emt 00:00:12]} 21. f4 {[%clk
00:00:07]} {[%emt 00:00:03]} Nf6 {[%clk 00:01:31]} {[%emt 00:01:10]} 22. Bf3
{[%clk 00:00:06]} {[%emt 00:00:04]} Ne4 {[%clk 00:01:30]} {[%emt 00:00:04]} 23.
Bxe4 {[%clk 00:00:06]} {[%emt 00:00:03]} Bxe4 {[%emt 00:00:04]} 24. d5 {[%clk
00:00:06]} f6 {[%clk 00:01:14]} {[%emt 00:00:21]} 25. Nc6 {[%clk 00:00:07]}
{[%emt 00:00:02]} Rd7 {[%clk 00:00:48]} {[%emt 00:00:29]} 26. Bxf6 {[%clk
00:00:08]} {[%emt 00:00:01]} Kh8 {[%clk 00:00:37]} {[%emt 00:00:15]} 27. Be5
{[%clk 00:00:10]} Bxe5 {[%clk 00:00:21]} {[%emt 00:00:19]} 28. Nxe5 {[%clk
00:00:12]} {[%emt 00:00:01]} Rd6 {[%clk 00:00:12]} {[%emt 00:00:13]} 29. Re1
{[%clk 00:00:14]} exd5 {[%clk 00:00:12]} {[%emt 00:00:02]} 30. cxd5 {[%clk
00:00:15]} {[%emt 00:00:02]} Rxc1 {[%clk 00:00:07]} {[%emt 00:00:08]} 31. Rxc1
{[%clk 00:00:17]} Bxd5 {[%clk 00:00:07]} {[%emt 00:00:03]} 32. Rd1 {[%clk
00:00:12]} {[%emt 00:00:08]} Rd8 {[%clk 00:00:05]} {[%emt 00:00:05]} 33. Qh4
{[%clk 00:00:11]} {[%emt 00:00:04]} 1-0

[Event "NJSK 2026 Jeugd C"]
[Site "Helmond, Netherlands"]
[Date "2026.05.01"]
[Round "12.1"]
[White "Guillaumond, Matthieu"]
[Black "Teianu, Sabin"]
[Result "0-1"]
[TimeControl "90min/40moves + 30sec/move"]
[WhiteTitle "-"]
[BlackTitle "-"]
[WhiteFideId "1097091"]
[BlackFideId "1095846"]
[WhiteElo "2104"]
[BlackElo "2131"]

1. e4 {[%clk 00:04:05]} e6 {[%clk 00:05:06]} {[%emt 00:00:03]} 2. d4 {[%clk
00:04:07]} {[%emt 00:00:03]} d5 {[%clk 00:05:08]} 3. Nc3 {[%clk 00:04:09]} dxe4
{[%clk 00:05:10]} {[%emt 00:00:03]} 4. Nxe4 {[%clk 00:04:10]} {[%emt 00:00:10]}
Bd7 {[%clk 00:05:12]} {[%emt 00:00:05]} 5. Nf3 {[%clk 00:04:11]} {[%emt
00:00:11]} Bc6 {[%clk 00:05:13]} {[%emt 00:00:09]} 6. Bd3 {[%clk 00:04:13]} Nd7
{[%clk 00:05:15]} 7. O-O {[%clk 00:04:11]} Ngf6 {[%clk 00:05:16]} 8. Ng3 {[%clk
00:04:13]} g6 {[%clk 00:05:14]} 9. c3 {[%clk 00:03:54]} {[%emt 00:00:02]} Bg7
{[%clk 00:05:15]} {[%emt 00:00:02]} 10. Re1 {[%clk 00:03:55]} {[%emt 00:00:02]}
O-O {[%clk 00:05:04]} {[%emt 00:00:14]} 11. Bg5 {[%clk 00:03:30]} {[%emt
00:00:29]} h6 {[%clk 00:04:48]} {[%emt 00:00:19]} 12. Be3 {[%clk 00:03:31]}
{[%emt 00:00:02]} Nd5 {[%clk 00:04:20]} {[%emt 00:00:31]} 13. Bd2 {[%clk
00:03:32]} {[%emt 00:00:02]} b6 {[%clk 00:03:23]} {[%emt 00:01:00]} 14. Qc1
{[%clk 00:03:12]} {[%emt 00:00:22]} h5 {[%clk 00:03:03]} {[%emt 00:00:24]} 15.
Bxg6 {[%clk 00:01:30]} {[%emt 00:01:45]} fxg6 {[%clk 00:02:57]} {[%emt
00:00:08]} 16. Rxe6 {[%clk 00:01:31]} {[%emt 00:00:02]} Ne7 {[%clk 00:01:09]}
{[%emt 00:01:51]} 17. Bg5 {[%clk 00:01:17]} {[%emt 00:00:17]} Nf6 {[%clk
00:00:59]} {[%emt 00:00:14]} 18. Qe3 {[%clk 00:00:48]} {[%emt 00:00:31]} Ned5
{[%clk 00:00:39]} {[%emt 00:00:23]} 19. Bxf6 {[%clk 00:00:36]} {[%emt
00:00:15]} Rxf6 {[%clk 00:00:16]} {[%emt 00:00:27]} 20. Qe4 {[%clk 00:00:37]}
Qd7 {[%clk 00:00:07]} {[%emt 00:00:13]} 21. Rxf6 {[%clk 00:00:32]} {[%emt
00:00:08]} Nxf6 {[%clk 00:00:08]} {[%emt 00:00:02]} 22. Qxg6 {[%clk 00:00:34]}
Bxf3 {[%clk 00:00:08]} {[%emt 00:00:02]} 23. gxf3 {[%clk 00:00:34]} {[%emt
00:00:03]} Qf7 {[%clk 00:00:05]} {[%emt 00:00:06]} 24. Qg5 {[%clk 00:00:31]}
{[%emt 00:00:06]} Re8 {[%clk 00:00:05]} {[%emt 00:00:03]} 25. Nf5 {[%clk
00:00:30]} {[%emt 00:00:04]} Kh7 {[%clk 00:00:05]} {[%emt 00:00:03]} 26. Kh1
{[%clk 00:00:20]} {[%emt 00:00:12]} Qg6 {[%clk 00:00:07]} {[%emt 00:00:01]} 27.
Qxg6+ {[%clk 00:00:06]} {[%emt 00:00:17]} Kxg6 {[%clk 00:00:09]} {[%emt
00:00:01]} 28. Rg1+ {[%clk 00:00:06]} {[%emt 00:00:03]} Kxf5 {[%clk 00:00:10]}
{[%emt 00:00:02]} 29. Rxg7 {[%clk 00:00:08]} h4 {[%clk 00:00:08]} {[%emt
00:00:05]} 30. Kg2 {[%clk 00:00:04]} {[%emt 00:00:07]} Nh5 {[%clk 00:00:08]}
{[%emt 00:00:03]} 31. Rxc7 {[%clk 00:00:06]} {[%emt 00:00:01]} Nf4+ {[%clk
00:00:09]} {[%emt 00:00:02]} 32. Kf1 {[%clk 00:00:08]} h3 {[%clk 00:00:07]}
{[%emt 00:00:06]} 33. Rxa7 {[%clk 00:00:09]} {[%emt 00:00:02]} Nd3 {[%clk
00:00:08]} 34. Rf7+ {[%clk 00:00:05]} {[%emt 00:00:03]} Kg6 {[%clk 00:00:10]}
{[%emt 00:00:06]} 35. Rc7 {[%clk 00:00:04]} {[%emt 00:00:04]} Re1# {[%clk
00:00:11]} {[%emt 00:00:01]} 0-1

[ePGN "0.1;DGT LiveChess/2.2.10"]

[Event "NJSK 2026 Meisjes C"]
[Site "Helmond, Netherlands"]
[Date "2026.04.25"]
[Round "1.1"]
[White "Bakker, Hannah"]
[Black "Elangkumaran, Anumitra"]
[Result "0-1"]
[TimeControl "90min/40moves + 30min + 30sec/move"]
[WhiteTitle "-"]
[BlackTitle "-"]
[WhiteFideId "40107671"]
[BlackFideId "40109070"]
[WhiteElo "1634"]
[BlackElo "1768"]

1. d4 {[%clk 01:30:56]} {[%emt 00:00:03]} Nf6 {[%clk 01:30:43]} {[%emt
00:00:16]} 2. c4 {[%clk 01:31:08]} {[%emt 00:00:19]} e6 {[%clk 01:30:53]}
{[%emt 00:00:21]} 3. Nc3 {[%clk 01:30:26]} {[%emt 00:01:12]} d5 {[%clk
01:30:44]} {[%emt 00:00:39]} 4. e3 {[%clk 01:29:29]} {[%emt 00:01:27]} Bb4
{[%clk 01:27:50]} {[%emt 00:03:24]} 5. Qb3 {[%clk 01:26:32]} {[%emt 00:03:27]}
Nc6 {[%clk 01:26:04]} {[%emt 00:02:16]} 6. Nf3 {[%clk 01:22:34]} {[%emt
00:04:27]} O-O {[%clk 01:23:20]} {[%emt 00:03:14]} 7. Bd3 {[%clk 01:20:09]}
{[%emt 00:02:55]} h6 {[%clk 01:19:58]} {[%emt 00:03:52]} 8. O-O {[%clk
01:17:30]} {[%emt 00:03:09]} Bxc3 {[%clk 01:16:43]} {[%emt 00:03:45]} 9. Qxc3
{[%clk 01:16:39]} {[%emt 00:01:22]} Re8 {[%clk 01:14:58]} {[%emt 00:02:15]} 10.
b3 {[%clk 01:11:17]} {[%emt 00:05:52]} a5 {[%clk 01:05:47]} {[%emt 00:09:40]}
11. Bc2 {[%clk 00:55:23]} {[%emt 00:16:24]} Nb4 {[%clk 00:57:42]} {[%emt
00:08:36]} 12. Bb2 {[%clk 00:47:27]} {[%emt 00:08:26]} Nxc2 {[%clk 00:53:36]}
{[%emt 00:04:34]} 13. Qxc2 {[%clk 00:47:07]} {[%emt 00:00:51]} c6 {[%clk
00:45:22]} {[%emt 00:08:43]} 14. Rfe1 {[%clk 00:37:39]} {[%emt 00:09:59]} Ne4
{[%clk 00:36:43]} {[%emt 00:09:08]} 15. Ne5 {[%clk 00:29:06]} {[%emt 00:09:02]}
Ng5 {[%clk 00:25:34]} {[%emt 00:11:40]} 16. f3 {[%clk 00:22:27]} {[%emt
00:07:10]} f6 {[%clk 00:22:06]} {[%emt 00:03:58]} 17. Nd3 {[%clk 00:17:59]}
{[%emt 00:04:57]} Nf7 {[%clk 00:19:57]} {[%emt 00:02:39]} 18. e4 {[%clk
00:14:40]} {[%emt 00:03:50]} Bd7 {[%clk 00:13:56]} {[%emt 00:06:31]} 19. Nc5
{[%clk 00:13:01]} {[%emt 00:02:17]} b6 {[%clk 00:13:40]} {[%emt 00:00:37]} 20.
Nxd7 {[%clk 00:12:43]} {[%emt 00:00:49]} Qxd7 {[%clk 00:14:02]} {[%emt
00:00:07]} 21. Rac1 {[%clk 00:10:32]} {[%emt 00:02:42]} Rac8 {[%clk 00:12:46]}
{[%emt 00:01:46]} 22. a3 {[%clk 00:08:13]} {[%emt 00:02:49]} e5 {[%clk
00:11:41]} {[%emt 00:01:35]} 23. c5 {[%clk 00:04:31]} {[%emt 00:04:11]} b5
{[%clk 00:10:14]} {[%emt 00:01:58]} 24. Rcd1 {[%clk 00:03:51]} {[%emt
00:01:10]} Qb7 {[%clk 00:09:21]} {[%emt 00:01:23]} 25. Qd2 {[%clk 00:03:26]}
{[%emt 00:00:55]} Ra8 {[%clk 00:07:28]} {[%emt 00:02:22]} 26. dxe5 {[%clk
00:03:35]} {[%emt 00:00:22]} Nxe5 {[%clk 00:06:29]} {[%emt 00:01:29]} 27. exd5
{[%clk 00:03:58]} {[%emt 00:00:07]} cxd5 {[%clk 00:06:15]} {[%emt 00:00:43]} 28.
Bxe5 {[%clk 00:04:00]} {[%emt 00:00:28]} fxe5 {[%clk 00:04:33]} {[%emt
00:02:13]} 29. Qxd5+ {[%clk 00:04:25]} {[%emt 00:00:05]} Qf7 {[%clk 00:04:21]}
{[%emt 00:00:42]} 30. Rxe5 {[%clk 00:03:42]} {[%emt 00:01:13]} Rxe5 {[%clk
00:04:03]} {[%emt 00:00:48]} 31. Qxe5 {[%clk 00:03:41]} {[%emt 00:00:31]} Qxb3
{[%clk 00:04:09]} {[%emt 00:00:23]} 32. Qd5+ {[%clk 00:04:05]} {[%emt
00:00:06]} Qxd5 {[%clk 00:04:25]} {[%emt 00:00:14]} 33. Rxd5 {[%clk 00:04:34]}
b4 {[%clk 00:03:12]} {[%emt 00:01:43]} 34. c6 {[%clk 00:04:07]} {[%emt
00:00:57]} bxa3 {[%clk 00:01:14]} {[%emt 00:02:27]} 35. c7 {[%clk 00:04:32]}
{[%emt 00:00:07]} a2 {[%clk 00:01:35]} {[%emt 00:00:09]} 36. Rd8+ {[%clk
00:04:55]} {[%emt 00:00:07]} Kf7 {[%clk 00:01:36]} {[%emt 00:00:29]} 37. Rd1
{[%clk 00:04:10]} {[%emt 00:01:14]} Ke7 {[%clk 00:01:55]} {[%emt 00:00:10]} 38.
Ra1 {[%clk 00:04:21]} {[%emt 00:00:20]} Kd7 {[%clk 00:02:20]} {[%emt 00:00:05]}
39. Rxa2 {[%clk 00:04:49]} {[%emt 00:00:02]} Kxc7 {[%clk 00:02:48]} {[%emt
00:00:02]} 40. Kf2 {[%clk 00:04:20]} {[%emt 00:00:59]} a4 {[%clk 00:03:11]}
{[%emt 00:00:08]} 41. Ke3 {[%clk 00:04:25]} {[%emt 00:00:23]} Kb6 {[%clk
00:03:25]} {[%emt 00:00:18]} 42. Kd3 {[%clk 00:04:12]} {[%emt 00:00:42]} Kb5
{[%clk 00:03:28]} {[%emt 00:00:26]} 43. Kc3 {[%clk 00:04:07]} {[%emt 00:00:35]}
Rc8+ {[%clk 00:03:44]} {[%emt 00:00:15]} 44. Kb2 {[%clk 00:04:21]} {[%emt
00:00:16]} Kb4 {[%clk 00:03:54]} {[%emt 00:00:19]} 45. Ra3 {[%clk 00:01:29]}
{[%emt 00:03:23]} Re8 {[%clk 00:03:53]} {[%emt 00:01:11]} 46. Ra2 {[%clk
00:01:03]} {[%emt 00:00:54]} Re2+ {[%clk 00:00:33]} {[%emt 00:03:51]} 47. Kb1
{[%clk 00:01:12]} {[%emt 00:00:22]} Rxa2 {[%clk 00:29:07]} {[%emt 00:01:56]} 48.
Kxa2 {[%clk 00:31:37]} {[%emt 00:00:05]} Kc3 {[%clk 00:29:28]} {[%emt
00:00:09]} 49. Ka3 {[%clk 00:31:13]} {[%emt 00:00:55]} Kd3 {[%clk 00:28:27]}
{[%emt 00:01:30]} 50. Kxa4 {[%clk 00:30:14]} {[%emt 00:01:29]} Ke3 {[%clk
00:28:39]} {[%emt 00:00:18]} 51. Kb4 {[%clk 00:29:49]} {[%emt 00:00:55]} Kf2
{[%clk 00:28:23]} {[%emt 00:00:45]} 52. Kc4 {[%clk 00:28:37]} {[%emt 00:01:43]}
Kxg2 {[%clk 00:28:38]} {[%emt 00:00:15]} 53. f4 {[%clk 00:26:50]} {[%emt
00:02:17]} Kxh2 {[%clk 00:27:47]} {[%emt 00:01:20]} 54. f5 {[%clk 00:25:00]}
{[%emt 00:02:20]} Kg3 {[%clk 00:28:03]} {[%emt 00:00:13]} 55. Kd5 {[%clk
00:25:07]} {[%emt 00:00:24]} Kf4 {[%clk 00:28:15]} {[%emt 00:00:18]} 0-1